bitfinex/quotes_SOLUSD_20250106
["timestamp","ask_amount","ask_price","bid_price","bid_amount"]
[1736184489505,33.01482683,219.43,219.38,10.0]
[1736184490109,8.77604022,219.4,219.38,10.0]
[1736184491214,23.776884,219.42,219.38,10.0]
[1736184491519,23.776884,219.41,219.38,10.0]
[1736184491719,8.77604022,219.41,219.38,10.0]
[1736184492020,8.77604022,219.42,219.38,10.0]
[1736184492221,32.55292422,219.42,219.38,10.0]
[1736184492519,22.05878661,219.43,219.38,10.0]
[1736184492820,24.23878661,219.43,219.38,10.0]
[1736184493922,0.25098,219.42,219.38,10.0]
[1736184494802,0.25098,219.4,219.38,10.0]
[1736184495455,0.12549,219.41,219.38,10.0]
[1736184496730,0.12549,219.42,219.38,10.0]
[1736184500217,0.12549,219.42,219.39,8.77604022]
[1736184500808,0.12549,219.42,219.38,10.0]
[1736184502012,0.12549,219.42,219.38,18.77604022]
[1736184504632,0.12549,219.42,219.38,10.0]
[1736184505532,8.77604022,219.41,219.38,10.0]
[1736184505713,8.90153022,219.42,219.38,10.0]
[1736184507034,8.77604022,219.41,219.38,10.0]
[1736184507633,8.90153022,219.42,219.38,10.0]
[1736184507831,8.77604022,219.4,219.38,10.0]
[1736184508629,23.776884,219.42,219.38,10.0]
[1736184508630,8.77604022,219.39,219.38,10.0]
[1736184509345,8.90153022,219.39,219.38,10.0]
[1736184511832,9.02702022,219.39,219.38,10.0]
[1736184513734,0.25098,219.39,219.38,10.0]
[1736184514252,32.80390422,219.39,219.38,10.0]
[1736184515019,35.172584,219.38,219.28,1.6428]
[1736184515225,0.12549,219.31,219.28,1.6428]
[1736184516539,0.12549,219.28,219.23,1.631]
[1736184516739,0.12549,219.24,219.17,7.13697216]
[1736184516919,11.08153022,219.24,219.17,15.91301238]
[1736184517116,11.08153022,219.24,219.17,7.13697216]
[1736184517117,23.776884,219.23,219.17,7.13697216]
[1736184517435,8.77604022,219.18,219.17,7.13697216]
[1736184517639,8.90153022,219.18,219.17,7.13697216]
[1736184517927,2.18,219.19,219.15,8.77604022]
[1736184518242,0.12549,219.21,219.13,8.1543]
[1736184518418,0.12549,219.21,219.14,8.77604022]
[1736184518617,0.12549,219.21,219.13,8.1543]
[1736184518618,0.12549,219.21,219.16,8.77604022]
[1736184518839,0.25098,219.21,219.13,8.1543]
[1736184519142,0.12549,219.19,219.13,8.1543]
[1736184519310,0.12549,219.19,219.13,16.93034022]
[1736184519518,0.12549,219.19,219.14,8.77604022]
[1736184519826,0.12549,219.19,219.13,16.93034022]
[1736184520841,8.77604022,219.22,219.14,8.77604022]
[1736184521033,2.18,219.21,219.15,8.77604022]
[1736184521348,0.12549,219.2,219.15,8.77604022]
[1736184522552,0.25098,219.2,219.15,8.77604022]
[1736184522760,0.25098,219.2,219.14,8.77604022]
[1736184524862,0.25098,219.2,219.13,8.1543]
[1736184525027,0.25098,219.2,219.14,8.77604022]
[1736184525723,9.02702022,219.2,219.13,10.30144022]
[1736184526886,8.77604022,219.19,219.13,1.5254]
[1736184527170,8.77604022,219.2,219.13,10.30144022]
[1736184527862,2.18,219.21,219.16,8.77604022]
[1736184528170,8.77604022,219.17,219.08,8.77604022]
[1736184528389,8.77604022,219.14,219.05,1.5099]
[1736184528553,8.77604022,219.14,219.07,8.77604022]
[1736184528750,8.77604022,219.15,219.08,8.77604022]
[1736184529280,23.776884,219.18,219.07,8.77604022]
[1736184529281,8.77604022,219.14,219.07,8.77604022]
[1736184529590,2.18,219.13,219.07,8.77604022]
[1736184530172,23.776884,219.12,219.05,21.5099]
[1736184530343,10.95604022,219.13,219.06,8.77604022]
[1736184530572,9.02702022,219.12,219.05,30.28594022]
[1736184530780,0.25098,219.12,219.06,8.77604022]
[1736184530963,0.25098,219.12,219.07,8.77604022]
[1736184531275,0.25098,219.12,219.05,21.5099]
[1736184531575,0.25098,219.12,219.07,8.77604022]
[1736184532275,0.25098,219.12,219.06,8.77604022]
[1736184533953,0.25098,219.12,219.07,8.77604022]
[1736184535056,0.25098,219.12,219.08,8.77604022]
[1736184535259,8.77604022,219.15,219.08,8.77604022]
[1736184535461,2.18,219.15,219.11,8.77604022]
[1736184535677,2.18,219.17,219.11,8.77604022]
[1736184535984,2.18,219.17,219.12,8.77604022]
[1736184536852,2.18,219.17,219.07,11.4113]
[1736184537163,2.18,219.17,219.12,8.77604022]
[1736184537375,2.18,219.17,219.11,8.77604022]
[1736184537688,2.18,219.17,219.12,8.77604022]
[1736184538095,2.18,219.17,219.1,20.0]
[1736184538386,8.77604022,219.16,219.09,8.77604022]
[1736184539090,0.12549,219.14,219.08,28.77604022]
[1736184539682,8.77604022,219.14,219.08,28.77604022]
[1736184540153,0.12549,219.14,219.08,28.77604022]
[1736184541087,0.25098,219.16,219.09,8.77604022]
[1736184541391,9.02702022,219.16,219.09,8.77604022]
[1736184541551,0.12549,219.14,219.08,28.77604022]
[1736184541963,8.77604022,219.13,219.07,8.77604022]
[1736184542163,0.12549,219.12,219.06,8.77604022]
[1736184542604,8.77604022,219.12,219.05,21.5099]
[1736184542779,8.77604022,219.12,219.05,30.28594022]
[1736184543170,2.18,219.12,219.06,8.77604022]
[1736184543397,2.18,219.12,219.07,8.77604022]
[1736184543570,10.95604022,219.12,219.05,30.28594022]
[1736184544697,10.95604022,219.12,219.05,21.5099]
[1736184544906,2.18,219.12,219.06,8.77604022]
[1736184545089,10.95604022,219.12,219.05,30.28594022]
[1736184545892,2.18,219.12,219.05,30.28594022]
[1736184546190,10.95604022,219.12,219.05,30.28594022]
[1736184546703,2.18,219.12,219.06,8.77604022]
[1736184546900,2.18,219.12,219.07,8.77604022]
[1736184547378,2.18,219.12,219.05,21.5099]
[1736184547578,2.18,219.12,219.07,8.77604022]
[1736184547995,2.18,219.12,219.06,8.77604022]
[1736184548906,0.12549,219.11,219.05,20.0]
[1736184549262,2.18,219.13,219.06,8.77604022]
[1736184549910,10.95604022,219.13,219.06,8.77604022]
[1736184550831,2.18,219.13,219.05,20.0]
[1736184551039,10.95604022,219.13,219.06,8.77604022]
[1736184551528,10.95604022,219.13,219.05,20.0]
[1736184551529,0.12549,219.11,219.05,20.0]
[1736184552381,0.12549,219.11,219.02,11.4143]
[1736184552382,8.77604022,219.11,219.02,11.4143]
[1736184552586,8.77604022,219.1,219.02,11.4143]
[1736184552823,8.77604022,219.1,219.03,8.77604022]
[1736184553156,2.18,219.13,219.04,8.77604022]
[1736184553306,8.77604022,219.11,219.04,8.77604022]
[1736184553620,2.18,219.13,219.02,20.0]
[1736184553621,8.77604022,219.09,219.02,20.0]
[1736184553833,8.77604022,219.09,219.02,28.77604022]
[1736184554195,8.77604022,219.1,219.02,28.77604022]
[1736184554409,8.77604022,219.09,219.02,28.77604022]
[1736184555924,8.77604022,219.08,219.01,8.77604022]
[1736184556631,8.77604022,219.06,219.0,8.77604022]
[1736184557645,8.77604022,219.07,219.0,8.77604022]
[1736184562751,8.77604022,219.06,219.02,20.0]
[1736184563035,0.12549,219.1,219.02,20.0]
[1736184563220,8.77604022,219.06,219.02,20.0]
[1736184563426,8.77604022,219.07,219.0,8.77604022]
[1736184565148,8.77604022,219.06,218.99,28.77604022]
[1736184567550,10.95604022,219.06,218.99,28.77604022]
[1736184567786,2.18,219.06,218.99,20.0]
[1736184567932,8.77604022,219.02,218.97,20.0]
[1736184568346,2.18,219.06,218.97,20.0]
[1736184568627,8.77604022,219.03,218.99,20.0]
[1736184568943,2.18,219.06,218.97,8.77604022]
[1736184569139,2.18,219.06,219.0,8.77604022]
[1736184569340,2.18,219.05,219.0,8.77604022]
[1736184569653,33.33854979,219.07,219.01,8.77604022]
[1736184569836,31.15854979,219.07,219.01,8.77604022]
[1736184570033,31.15854979,219.07,219.02,8.77604022]
[1736184570238,31.15854979,219.07,218.96,23.776884]
[1736184570239,39.93459001,219.07,219.01,8.77604022]
[1736184570627,39.93459001,219.07,219.0,8.77604022]
[1736184571153,2.18,219.06,219.02,8.77604022]
[1736184571354,2.18,219.06,218.95,13.038]
[1736184571355,2.18,219.06,219.01,8.77604022]
[1736184571958,2.18,219.06,219.02,8.77604022]
[1736184572256,31.15854979,219.07,219.05,8.77604022]
[1736184572456,31.15854979,219.07,219.06,8.77604022]
[1736184572753,31.15854979,219.07,219.03,1.6306]
[1736184572754,8.77604022,219.12,219.05,8.77604022]
[1736184572957,6.1734,219.14,219.05,8.77604022]
[1736184573131,8.77604022,219.12,219.05,8.77604022]
[1736184573528,8.77604022,219.11,219.04,8.77604022]
[1736184573838,8.77604022,219.1,219.04,20.0]
[1736184574036,8.77604022,219.1,219.04,28.77604022]
[1736184574959,8.77604022,219.09,219.05,20.0]
[1736184575153,8.77604022,219.09,219.03,1.6306]
[1736184575339,0.25098,219.12,219.03,1.6306]
[1736184575548,8.77604022,219.08,219.03,1.6306]
[1736184576342,8.77604022,219.09,219.03,1.6306]
[1736184577058,8.77604022,219.1,219.03,10.40664022]
[1736184577440,8.77604022,219.09,219.03,10.40664022]
[1736184580562,8.77604022,219.09,219.03,1.6306]
[1736184581661,8.77604022,219.09,219.03,10.40664022]
[1736184582169,8.77604022,219.1,219.03,10.40664022]
[1736184582350,8.77604022,219.1,219.04,8.77604022]
[1736184582966,11.4062,219.18,219.06,8.77604022]
[1736184583343,8.77604022,219.13,219.06,8.77604022]
[1736184583561,8.77604022,219.12,219.06,8.77604022]
[1736184583752,8.77604022,219.11,219.04,20.0]
[1736184584066,8.77604022,219.11,219.05,8.77604022]
[1736184585453,8.77604022,219.12,219.06,8.77604022]
[1736184586568,8.77604022,219.11,219.05,8.77604022]
[1736184586865,8.77604022,219.11,219.04,28.77604022]
[1736184587066,8.77604022,219.11,219.05,8.77604022]
[1736184588284,8.77604022,219.12,219.06,8.77604022]
[1736184588569,8.77604022,219.11,219.05,8.77604022]
[1736184588863,8.77604022,219.12,219.05,8.77604022]
[1736184589073,2.18,219.13,219.07,8.77604022]
[1736184589544,10.95604022,219.13,219.04,20.0]
[1736184589743,10.95604022,219.13,219.06,8.77604022]
[1736184590474,8.77604022,219.11,219.04,28.77604022]
[1736184590771,8.77604022,219.11,219.04,8.77604022]
[1736184591572,8.77604022,219.1,219.03,1.6306]
[1736184591775,8.77604022,219.1,219.03,10.40664022]
[1736184593064,8.77604022,219.11,219.04,8.77604022]
[1736184595075,8.77604022,219.1,219.03,10.40664022]
[1736184595971,8.77604022,219.11,219.04,8.77604022]
[1736184596175,2.18,219.13,219.04,8.77604022]
[1736184596354,8.77604022,219.12,219.04,8.77604022]
[1736184596875,8.77604022,219.11,219.04,8.77604022]
[1736184597250,2.18,219.13,219.03,10.40664022]
[1736184597451,8.77604022,219.1,219.03,10.40664022]
[1736184597751,8.77604022,219.09,219.03,1.6306]
[1736184598261,8.77604022,219.1,219.03,10.40664022]
[1736184598862,8.77604022,219.08,219.03,1.6306]
[1736184599673,8.77604022,219.09,219.03,1.6306]
[1736184599860,8.77604022,219.1,219.03,10.40664022]
[1736184600463,0.12549,219.12,219.03,10.40664022]
[1736184600673,8.77604022,219.09,219.03,1.6306]
[1736184602281,8.77604022,219.05,219.02,7.13697216]
[1736184602477,8.77604022,219.04,219.02,7.13697216]
[1736184603301,2.16,219.05,218.99,7.13697216]
[1736184603487,10.93604022,219.05,218.99,7.13697216]
[1736184603788,10.93604022,219.05,218.98,17.54091238]
[1736184604175,2.16,219.05,218.99,8.77604022]
[1736184604782,10.93604022,219.05,218.98,17.54091238]
[1736184605263,8.77604022,219.04,218.98,17.54091238]
[1736184605885,10.93604022,219.05,218.99,8.77604022]
[1736184607360,2.16,219.05,219.01,8.77604022]
[1736184608162,6.0394,219.16,219.04,8.77604022]
[1736184608381,8.77604022,219.11,219.04,8.77604022]
[1736184608574,2.16,219.15,219.04,8.77604022]
[1736184608763,8.77604022,219.1,219.03,8.77604022]
[1736184609581,8.77604022,219.11,219.04,8.77604022]
[1736184611087,8.77604022,219.11,219.05,8.77604022]
[1736184611679,0.12549,219.14,219.05,8.77604022]
[1736184611878,1.6015,219.17,219.08,8.77604022]
[1736184611879,2.16,219.13,219.08,8.77604022]
[1736184612081,2.16,219.13,219.05,20.0]
[1736184612386,2.16,219.13,219.08,8.77604022]
[1736184612585,0.12549,219.19,219.05,20.0]
[1736184612586,27.92962066,219.23,219.1,8.77604022]
[1736184612786,10.93604022,219.2,219.13,8.77604022]
[1736184613199,2.16,219.2,219.15,8.77604022]
[1736184613414,1.6015,219.23,219.17,8.77604022]
[1736184613681,56.2708117,219.25,219.21,8.77604022]
[1736184613682,44.8683117,219.25,219.21,8.77604022]
[1736184613884,44.8683117,219.25,219.23,8.77604022]
[1736184615169,44.8683117,219.25,219.16,11.4071]
[1736184615383,44.8683117,219.25,219.17,0.12549]
[1736184615572,44.8683117,219.25,219.24,8.77604022]
[1736184616589,44.8683117,219.25,219.15,5.75347111]
[1736184616759,8.77604022,219.24,219.18,8.77604022]
[1736184616957,8.77604022,219.21,219.15,1.5588]
[1736184617168,8.77604022,219.2,219.13,8.77604022]
[1736184617375,8.77604022,219.18,219.12,7.13697216]
[1736184617580,8.77604022,219.19,219.12,8.77604022]
[1736184617775,8.77604022,219.19,219.1,1.6371]
[1736184617980,8.77604022,219.18,219.12,8.77604022]
[1736184618382,8.77604022,219.18,219.1,1.6371]
[1736184618383,8.77604022,219.18,219.11,8.77604022]
[1736184619791,8.77604022,219.19,219.12,8.77604022]
[1736184619993,8.77604022,219.2,219.14,8.77604022]
[1736184621087,2.16,219.21,219.15,8.77604022]
[1736184621274,10.93604022,219.21,219.14,8.77604022]
[1736184621687,2.16,219.21,219.15,8.77604022]
[1736184622078,10.93604022,219.21,219.14,8.77604022]
[1736184622276,10.93604022,219.21,219.11,8.77604022]
[1736184622277,8.77604022,219.19,219.11,8.77604022]
[1736184622488,8.77604022,219.18,219.11,8.77604022]
[1736184623093,8.77604022,219.17,219.1,10.41314022]
[1736184624016,8.77604022,219.2,219.13,8.77604022]
[1736184624177,2.16,219.21,219.14,8.77604022]
[1736184624377,10.93604022,219.21,219.14,8.77604022]
[1736184625110,8.77604022,219.21,219.14,8.77604022]
[1736184625304,22.16,219.22,219.16,8.77604022]
[1736184625665,0.12549,219.21,219.15,8.77604022]
[1736184626310,0.12549,219.21,219.16,8.77604022]
[1736184626911,0.12549,219.21,219.15,8.77604022]
[1736184627376,8.77604022,219.21,219.14,8.77604022]
[1736184628289,0.12549,219.2,219.14,8.77604022]
[1736184628494,0.12549,219.18,219.12,8.77604022]
[1736184628797,0.12549,219.18,219.1,1.6371]
[1736184628798,8.77604022,219.18,219.11,8.77604022]
[1736184629090,0.12549,219.18,219.12,8.77604022]
[1736184629581,0.12549,219.18,219.1,1.6371]
[1736184629774,0.12549,219.18,219.12,8.77604022]
[1736184630102,13.563,219.24,219.17,8.77604022]
[1736184630399,8.77604022,219.22,219.16,8.77604022]
[1736184630600,8.77604022,219.22,219.15,8.77604022]
[1736184630763,8.77604022,219.23,219.16,8.77604022]
[1736184630968,8.77604022,219.23,219.17,8.77604022]
[1736184631220,8.77604022,219.23,219.16,8.77604022]
[1736184631783,8.77604022,219.22,219.15,8.77604022]
[1736184632400,2.16,219.24,219.15,8.77604022]
[1736184632401,8.77604022,219.21,219.15,8.77604022]
[1736184632791,8.77604022,219.21,219.14,20.0]
[1736184633092,8.77604022,219.21,219.15,8.77604022]
[1736184633297,8.77604022,219.22,219.15,8.77604022]
[1736184633999,0.12549,219.22,219.16,8.77604022]
[1736184635185,8.90153022,219.22,219.15,8.77604022]
[1736184636479,0.12549,219.22,219.16,8.77604022]
[1736184636680,8.77604022,219.21,219.14,8.77604022]
[1736184636871,0.12549,219.2,219.13,8.77604022]
[1736184637070,0.12549,219.2,219.14,8.77604022]
[1736184637488,0.12549,219.2,219.13,8.77604022]
[1736184637678,8.77604022,219.2,219.13,8.77604022]
[1736184638002,8.77604022,219.19,219.12,8.77604022]
[1736184638500,8.77604022,219.2,219.13,8.77604022]
[1736184639173,8.77604022,219.21,219.14,8.77604022]
[1736184639370,8.77604022,219.22,219.15,8.77604022]
[1736184639795,10.93604022,219.23,219.15,8.77604022]
[1736184639990,8.77604022,219.22,219.15,8.77604022]
[1736184640400,10.93604022,219.22,219.15,8.77604022]
[1736184640702,8.77604022,219.23,219.15,8.77604022]
[1736184641088,10.93604022,219.24,219.16,8.77604022]
[1736184641288,0.12549,219.23,219.17,8.77604022]
[1736184642301,0.12549,219.23,219.16,8.77604022]
[1736184643005,9.02702022,219.23,219.16,8.77604022]
[1736184644207,8.77604022,219.22,219.15,8.77604022]
[1736184644587,8.77604022,219.2,219.11,20.0]
[1736184644782,8.90153022,219.18,219.1,1.6371]
[1736184644989,23.902374,219.23,219.05,6.4509]
[1736184644990,0.12549,219.16,219.05,6.4509]
[1736184645305,0.12549,219.16,219.09,8.77604022]
[1736184645620,0.12549,219.16,219.1,8.77604022]
[1736184645923,0.12549,219.17,219.1,8.77604022]
[1736184646108,0.12549,219.16,219.1,8.77604022]
[1736184646618,0.12549,219.16,219.11,8.77604022]
[1736184646906,0.12549,219.16,219.1,8.77604022]
[1736184648399,0.12549,219.17,219.1,8.77604022]
[1736184648683,8.77604022,219.18,219.1,8.77604022]
[1736184648877,8.77604022,219.18,219.11,8.77604022]
[1736184650112,8.77604022,219.19,219.11,8.77604022]
[1736184650308,2.16,219.2,219.15,8.77604022]
[1736184650608,2.16,219.2,219.17,8.77604022]
[1736184651012,2.16,219.2,219.16,8.77604022]
[1736184651196,23.776884,219.24,219.16,8.77604022]
[1736184651395,10.93604022,219.23,219.16,8.77604022]
[1736184651615,2.16,219.23,219.17,8.77604022]
[1736184656912,2.16,219.23,219.19,8.77604022]
[1736184657117,2.16,219.23,219.2,8.77604022]
[1736184657594,44.8683117,219.25,219.2,8.77604022]
[1736184658533,44.8683117,219.25,219.19,8.77604022]
[1736184658889,44.8683117,219.25,219.15,0.12549]
[1736184658890,44.8683117,219.25,219.17,20.0]
[1736184659118,44.8683117,219.25,219.18,8.77604022]
[1736184659303,44.8683117,219.25,219.19,8.77604022]
[1736184659504,44.8683117,219.25,219.2,8.77604022]
[1736184659699,44.8683117,219.25,219.24,8.77604022]
[1736184661626,2.16,219.35,219.24,8.90153022]
[1736184661805,2.16,219.35,219.29,8.77604022]
[1736184662397,10.93604022,219.35,219.28,8.77604022]
[1736184663030,8.90153022,219.34,219.27,8.77604022]
[1736184664311,8.77604022,219.32,219.25,28.77604022]
[1736184665607,8.77604022,219.3,219.21,1.5133]
[1736184665928,0.25098,219.34,219.27,8.77604022]
[1736184665929,10.93604022,219.34,219.27,8.77604022]
[1736184666107,8.77604022,219.33,219.26,8.77604022]
[1736184666308,8.77604022,219.32,219.25,8.77604022]
[1736184666511,8.77604022,219.32,219.25,28.77604022]
[1736184666723,8.77604022,219.3,219.25,20.0]
[1736184666958,8.77604022,219.31,219.24,8.77604022]
[1736184667599,8.77604022,219.33,219.26,8.77604022]
[1736184667805,10.93604022,219.34,219.27,8.77604022]
[1736184668023,2.16,219.34,219.28,8.77604022]
[1736184668426,8.77604022,219.33,219.26,8.77604022]
[1736184668826,2.16,219.34,219.27,8.77604022]
[1736184669006,10.93604022,219.34,219.27,8.77604022]
[1736184670953,10.93604022,219.34,219.28,8.77604022]
[1736184670954,2.16,219.34,219.28,8.77604022]
[1736184671237,2.16,219.38,219.32,8.77604022]
[1736184671606,8.77604022,219.38,219.31,8.77604022]
[1736184672036,8.77604022,219.37,219.29,8.77604022]
[1736184672437,2.16,219.39,219.29,8.77604022]
[1736184672438,0.12549,219.39,219.29,8.77604022]
[1736184672641,8.77604022,219.36,219.29,8.77604022]
[1736184673131,8.90153022,219.37,219.3,8.77604022]
[1736184673447,2.16,219.38,219.32,8.77604022]
[1736184673641,10.93604022,219.38,219.31,8.77604022]
[1736184673847,2.16,219.38,219.32,8.77604022]
[1736184674054,2.28549,219.4,219.32,8.77604022]
[1736184674259,8.77604022,219.39,219.32,8.77604022]
[1736184674548,11.06153022,219.4,219.33,8.77604022]
[1736184674750,8.77604022,219.41,219.34,8.77604022]
[1736184674954,10.93604022,219.41,219.34,8.77604022]
[1736184675111,2.16,219.41,219.34,8.77604022]
[1736184675309,8.77604022,219.41,219.34,8.77604022]
[1736184675538,8.77604022,219.4,219.33,8.77604022]
[1736184676122,8.77604022,219.39,219.32,8.77604022]
[1736184676312,8.77604022,219.4,219.33,8.77604022]
[1736184677423,0.12549,219.41,219.34,8.77604022]
[1736184677424,8.90153022,219.41,219.34,8.77604022]
[1736184677626,10.93604022,219.42,219.35,8.77604022]
[1736184677935,8.77604022,219.4,219.33,8.77604022]
[1736184678344,8.77604022,219.39,219.32,8.77604022]
[1736184678558,8.77604022,219.37,219.29,1.6142]
[1736184678846,8.77604022,219.37,219.24,13.20958516]
[1736184678847,8.77604022,219.32,219.24,1.5714]
[1736184679023,8.77604022,219.31,219.25,8.77604022]
[1736184680759,2.16,219.34,219.25,8.77604022]
[1736184680760,8.77604022,219.32,219.25,8.77604022]
[1736184680928,8.77604022,219.31,219.25,20.0]
[1736184681135,13.7313737,219.29,219.22,13.8568637]
[1736184681424,0.12549,219.33,219.19,13.7313737]
[1736184681425,13.7313737,219.26,219.19,13.7313737]
[1736184681849,13.7313737,219.25,219.19,13.7313737]
[1736184682034,13.7313737,219.25,219.18,13.7313737]
[1736184682949,13.7313737,219.25,219.14,13.7313737]
[1736184682950,13.7313737,219.21,219.14,13.7313737]
[1736184683269,13.7313737,219.21,219.14,33.7313737]
[1736184683468,13.7313737,219.2,219.14,20.0]
[1736184683622,0.12549,219.24,219.14,20.0]
[1736184683623,13.7313737,219.21,219.14,33.7313737]
[1736184684024,0.12549,219.24,219.12,13.7313737]
[1736184684025,13.7313737,219.19,219.12,13.7313737]
[1736184684232,13.7313737,219.17,219.1,13.7313737]
[1736184684929,13.7313737,219.18,219.1,13.7313737]
[1736184685132,13.7313737,219.18,219.11,13.7313737]
[1736184685330,13.7313737,219.19,219.11,13.7313737]
[1736184685633,13.7313737,219.19,219.12,13.7313737]
[1736184686050,13.7313737,219.2,219.13,13.7313737]
[1736184686244,13.7313737,219.23,219.15,13.7313737]
[1736184686633,15.8913737,219.22,219.15,13.7313737]
[1736184687286,2.16,219.22,219.16,13.7313737]
[1736184687755,13.7313737,219.25,219.18,13.7313737]
[1736184687962,2.16,219.25,219.19,13.7313737]
[1736184689044,2.16,219.25,219.2,13.7313737]
[1736184689239,2.16,219.25,219.21,13.7313737]
[1736184689633,2.16,219.25,219.14,11.53359]
[1736184689634,29.70881026,219.26,219.24,13.7313737]
[1736184691952,29.70881026,219.26,219.2,13.7313737]
[1736184692148,13.7313737,219.25,219.18,13.7313737]
[1736184693062,13.7313737,219.26,219.19,13.7313737]
[1736184693465,13.7313737,219.25,219.18,13.7313737]
[1736184693765,13.7313737,219.25,219.19,13.7313737]
[1736184696971,13.7313737,219.26,219.2,13.7313737]
[1736184697277,13.7313737,219.27,219.2,13.7313737]
[1736184698154,13.7313737,219.26,219.2,13.7313737]
[1736184698356,13.7313737,219.25,219.18,13.7313737]
[1736184698771,13.7313737,219.24,219.18,13.7313737]
[1736184698955,13.7313737,219.25,219.18,13.7313737]
[1736184699282,13.7313737,219.26,219.19,13.7313737]
[1736184699657,13.7313737,219.27,219.2,13.7313737]
[1736184701378,15.8913737,219.29,219.22,13.7313737]
[1736184702253,13.7313737,219.29,219.22,13.7313737]
[1736184702445,2.16,219.28,219.22,13.7313737]
[1736184703345,2.16,219.28,219.21,13.7313737]
[1736184703573,13.7313737,219.27,219.2,13.7313737]
[1736184704070,13.7313737,219.26,219.19,13.7313737]
[1736184706669,13.7313737,219.25,219.18,33.7313737]
[1736184707047,13.7313737,219.26,219.19,13.7313737]
[1736184707772,0.12549,219.25,219.19,13.7313737]
[1736184707962,13.7313737,219.25,219.18,33.7313737]
[1736184708473,0.12549,219.25,219.19,13.7313737]
[1736184709071,0.12549,219.25,219.18,20.0]
[1736184709072,13.7313737,219.25,219.18,13.7313737]
[1736184709658,0.12549,219.25,219.19,13.7313737]
[1736184710380,2.28549,219.25,219.19,13.7313737]
[1736184710756,2.16,219.25,219.2,13.7313737]
[1736184710971,2.16,219.25,219.21,13.7313737]
[1736184711783,2.16,219.25,219.2,13.7313737]
[1736184713083,2.16,219.25,219.15,1.545]
[1736184713380,13.7313737,219.22,219.15,15.2763737]
[1736184713599,13.7313737,219.21,219.14,13.7313737]
[1736184713763,13.7313737,219.22,219.15,13.7313737]
[1736184714274,13.7313737,219.2,219.13,13.7313737]
[1736184714474,13.7313737,219.19,219.13,13.7313737]
[1736184715075,13.7313737,219.19,219.1,1.63279]
[1736184715076,13.7313737,219.17,219.1,15.2386737]
[1736184715282,15.8913737,219.16,219.09,13.7313737]
[1736184716066,2.16,219.16,219.11,13.7313737]
[1736184717571,2.16,219.16,219.12,13.7313737]
[1736184717973,13.7313737,219.18,219.12,13.7313737]
[1736184718271,2.16,219.17,219.12,13.7313737]
[1736184718465,13.7313737,219.16,219.1,13.7313737]
[1736184718867,13.7313737,219.16,219.09,33.7313737]
[1736184720993,15.8913737,219.17,219.1,13.7313737]
[1736184723171,13.7313737,219.16,219.1,13.7313737]
[1736184723369,13.7313737,219.15,219.09,33.7313737]
[1736184723999,13.7313737,219.15,219.09,13.7313737]
[1736184724190,13.7313737,219.11,219.02,11.4144]
[1736184724397,6.1241,219.15,219.03,13.7313737]
[1736184724398,13.7313737,219.1,219.03,13.7313737]
[1736184725000,8.80403518,219.1,219.04,8.80403518]
[1736184725201,8.80403518,219.11,219.04,8.80403518]
[1736184726987,13.75634793,219.1,219.03,13.75634793]
[1736184727597,13.75634793,219.12,219.05,13.75634793]
[1736184728006,13.75634793,219.13,219.06,13.75634793]
[1736184728382,15.91634793,219.13,219.06,13.75634793]
[1736184728808,13.75634793,219.11,219.04,13.75634793]
[1736184729296,13.75634793,219.1,219.04,13.75634793]
[1736184729483,13.75634793,219.11,219.04,13.75634793]
[1736184729689,13.75634793,219.12,219.05,33.75634793]
[1736184729910,1.6015,219.17,219.09,13.75634793]
[1736184730111,1.6015,219.17,219.1,13.75634793]
[1736184730112,2.16,219.14,219.1,13.75634793]
[1736184730277,2.16,219.14,219.09,13.75634793]
[1736184730479,2.16,219.14,219.1,13.75634793]
[1736184730915,2.16,219.14,219.09,20.0]
[1736184731212,2.16,219.14,219.09,13.75634793]
[1736184731516,15.91634793,219.14,219.07,25.16814793]
[1736184731673,2.16,219.14,219.08,13.75634793]
[1736184732376,13.75634793,219.12,219.06,13.75634793]
[1736184732610,13.75634793,219.12,219.05,13.75634793]
[1736184732774,13.75634793,219.12,219.08,20.0]
[1736184733336,2.16,219.14,219.07,13.75634793]
[1736184733337,15.91634793,219.14,219.07,13.75634793]
[1736184733507,2.16,219.14,219.07,13.75634793]
[1736184733921,2.16,219.14,219.09,13.75634793]
[1736184734280,13.75634793,219.18,219.11,13.75634793]
[1736184734485,13.75634793,219.17,219.1,13.75634793]
[1736184736707,13.75634793,219.16,219.09,13.75634793]